bitfinex-derivatives/quotes_ETHF0:USTF0_20250927
["timestamp","ask_amount","ask_price","bid_price","bid_amount"]
[1758960324586,0.5322,3999.4,3998.3,7.25672832]
[1758960324793,1.92397276,3999.1,3998.4,0.324]
[1758960324994,3.2078,3999.2,3998.4,0.324]
[1758960325194,0.16219506,3999.1,3998.5,0.324]
[1758960325382,0.69439506,3999.0,3998.5,0.324]
[1758960325584,0.16219506,3998.9,3998.5,0.324]
[1758960325793,0.16219506,3998.8,3998.5,0.324]
[1758960326085,0.44979,3999.5,3998.6,0.323]
[1758960326086,0.16219506,3998.7,3998.6,0.323]
[1758960326798,3.74,3999.6,3998.6,5.323]
[1758960327097,3.2078,3999.6,3999.2,4.04892832]
[1758960327286,0.5322,3999.5,3999.3,0.323]
[1758960327491,3.2078,3999.6,3999.3,0.323]
[1758960327692,3.2078,3999.6,3999.2,6.11023832]
[1758960327693,0.5322,3999.5,3999.2,1.6115]
[1758960327888,2.37378276,3999.3,3999.2,1.6115]
[1758960328194,2.90598276,3999.3,3999.2,1.9335]
[1758960328382,2.45617276,3999.3,3999.2,1.9335]
[1758960328582,2.45617276,3999.3,3998.2,1.1672]
[1758960328583,0.5322,3998.3,3998.2,1.1672]
[1758960328789,0.5322,3998.3,3998.2,1.4892]
[1758960329591,0.5322,3998.3,3998.2,1.1672]
[1758960329896,0.5322,3998.3,3998.2,1.4892]
[1758960330097,0.5322,3998.9,3998.2,6.4892]
[1758960330396,0.7439,3999.1,3998.4,4.04892832]
[1758960330597,3.2078,3998.9,3998.5,0.321]
[1758960330796,3.2078,3998.9,3998.5,0.3512]
[1758960330993,0.5322,3998.6,3998.5,0.0302]
[1758960331199,1.22597334,3998.6,3998.5,0.0302]
[1758960331399,6.22597334,3998.6,3998.5,0.0302]
[1758960332092,0.5322,3996.9,3996.6,3.2078]
[1758960332293,0.98229,3996.8,3996.7,0.321]
[1758960332595,0.5322,3996.8,3996.7,4.36992832]
[1758960333099,0.53407594,3996.8,3996.7,4.37190456]
[1758960333291,0.00187594,3996.8,3996.7,9.37190456]
[1758960333491,0.00187594,3996.8,3996.7,4.37190456]
[1758960333687,0.53407594,3996.8,3996.7,4.05090456]
[1758960333896,0.53407594,3996.8,3996.7,4.37090456]
[1758960334297,0.00187594,3996.8,3996.7,9.37090456]
[1758960335005,0.2117,3997.2,3997.1,0.45005]
[1758960335199,0.7439,3997.8,3997.1,0.32]
[1758960335392,0.69753879,3997.7,3997.4,0.45001]
[1758960335697,0.2117,3997.8,3997.3,4.04892832]
[1758960335698,0.5322,3997.5,3997.3,7.70674832]
[1758960335894,0.7439,3997.8,3997.6,0.44999]
[1758960336191,0.7439,3997.8,3997.7,0.319]
[1758960336192,0.74584897,3997.8,3997.7,0.319]
[1758960336497,1.44472527,3997.8,3997.7,0.319]
[1758960336692,1.44472527,3997.8,3997.7,5.319]
[1758960336693,0.70082527,3997.8,3997.7,5.319]
[1758960336897,3.2078,3998.3,3997.7,5.319]
[1758960337095,3.2078,3998.3,3998.2,4.49885832]
[1758960337296,3.2078,3998.3,3998.2,48.82485832]
[1758960337490,0.2117,3998.4,3998.2,48.82485832]
[1758960337691,0.2117,3998.4,3998.2,43.82485832]
[1758960337995,0.5322,3998.3,3998.2,4.49885832]
[1758960338205,0.21366447,3998.4,3998.2,39.326]
[1758960338402,0.74586447,3998.4,3998.3,0.318]
[1758960338594,0.5322,3998.3,3998.0,3.2078]
[1758960338794,0.5322,3997.7,3997.5,42.2158]
[1758960338993,0.69577037,3997.6,3997.5,42.2158]
[1758960339198,0.69577037,3997.6,3997.5,42.5338]
[1758960339598,0.69577037,3997.6,3997.5,3.2078]
[1758960339903,0.69577037,3997.6,3997.5,3.22467848]
[1758960340506,0.98224,3997.2,3997.1,1.0622]
[1758960340794,0.98224,3997.2,3997.1,0.317]
[1758960340795,0.69577037,3997.2,3997.1,0.317]
[1758960341204,0.69577037,3997.2,3997.1,3.5248]
[1758960341389,0.69577037,3997.2,3997.1,0.317]
[1758960342297,0.5322,3996.8,3996.7,3.20977624]
[1758960342600,0.69577037,3996.8,3996.7,3.52577624]
[1758960343600,1.19402,3996.5,3996.4,1.0616]
[1758960343800,1.35759037,3996.5,3996.4,1.3776]
[1758960343997,0.7439,3996.0,3995.9,3.2078]
[1758960344198,0.90747037,3996.0,3995.9,3.5238]
[1758960344591,0.90747037,3996.0,3995.9,3.52648581]
[1758960345204,0.90747037,3996.0,3995.9,8.52648581]
[1758960345802,0.7439,3996.0,3995.9,8.52648581]
[1758960346306,0.2117,3996.0,3995.9,8.52648581]
[1758960347001,12.57569907,3996.0,3994.2,3.2078]
[1758960347203,12.57569907,3996.0,3994.3,0.319]
[1758960347204,0.7439,3995.0,3994.3,0.319]
[1758960347401,0.5322,3994.7,3994.3,0.319]
[1758960347705,0.10727075,3994.6,3994.3,0.319]
[1758960347905,0.31897075,3994.5,3994.2,3.2078]
[1758960348203,0.63947075,3994.4,3994.3,0.318]
[1758960349200,0.55763075,3994.4,3994.2,0.00299575]
[1758960349509,0.63947075,3994.3,3994.2,0.00299575]
[1758960349801,0.63947075,3994.3,3994.2,0.32099575]
[1758960350403,0.10727075,3994.3,3994.2,0.32099575]
[1758960350801,0.63947075,3994.3,3994.2,0.32099575]
[1758960350997,0.10727075,3994.3,3994.2,1.24117575]
[1758960351294,0.10674369,3994.3,3994.2,0.31999575]
[1758960351499,0.63894369,3994.3,3994.2,0.31999575]
[1758960351902,0.63894369,3994.3,3994.2,0.00299575]
[1758960352112,5.63894369,3994.3,3994.2,0.00299575]
[1758960352300,0.5322,3994.1,3994.0,0.317]
[1758960352502,3.84674369,3994.1,3994.0,0.317]
[1758960352902,3.31454369,3994.1,3994.0,0.317]
[1758960353104,3.42200367,3994.5,3994.0,0.9122]
[1758960353408,0.10661922,3994.4,3994.2,0.45037]
[1758960353602,3.21030367,3994.5,3994.3,0.76636]
[1758960353803,0.10662413,3994.4,3994.3,0.76636]
[1758960354108,0.00250367,3994.5,3994.4,0.5952]
[1758960354612,0.00250367,3994.5,3994.4,5.5952]
[1758960354903,3.7962,3995.6,3994.5,0.45034]
[1758960355106,0.10667485,3995.5,3995.4,1.04294]
[1758960355299,0.10667485,3995.5,3995.4,1.35794]
[1758960355705,3.2078,3995.6,3995.4,1.35794]
[1758960355913,3.2078,3995.6,3995.5,0.5927]
[1758960356115,0.00241941,3995.6,3995.5,0.5927]
[1758960356409,0.00241941,3995.6,3995.5,5.5927]
[1758960357015,3.2078,3996.6,3996.5,0.45012]
[1758960357210,3.31459678,3996.6,3996.5,0.76512]
[1758960357521,3.31459678,3996.6,3996.5,0.314]
[1758960358109,3.31716081,3996.6,3996.5,0.9043]
[1758960358709,0.00256403,3996.6,3996.5,5.9043]
[1758960359415,0.00256403,3996.6,3996.4,0.45013]
[1758960359617,0.00256403,3996.6,3996.5,0.313]
[1758960359913,0.00256403,3996.6,3996.5,0.9033]
[1758960360108,0.00256403,3996.6,3996.5,0.5903]
[1758960360303,0.69792735,3996.6,3996.5,0.313]
[1758960360508,0.2434,3996.5,3996.2,0.45015]
[1758960360715,0.10696332,3996.4,3996.3,0.313]
[1758960361312,0.10696332,3996.4,3996.3,0.9033]
[1758960361710,0.00256403,3996.6,3996.4,0.45013]
[1758960361914,4.03e-06,3996.6,3996.5,0.5903]
[1758960362114,3.65774,3998.2,3997.6,0.44999]
[1758960362317,0.5884,3998.0,3997.7,0.76198]
[1758960362516,0.5884,3997.8,3997.7,0.76198]
[1758960362816,0.5884,3997.8,3997.7,0.312]
[1758960363020,0.59061935,3997.8,3997.7,0.31453635]
[1758960363917,3.79841935,3997.8,3997.7,0.00253635]
[1758960364120,8.79841935,3997.8,3997.7,0.31453635]
[1758960364816,8.79841935,3997.8,3997.7,0.00253635]
[1758960365029,9.42031131,3997.8,3997.7,0.31453635]
[1758960365616,9.42031131,3997.8,3997.7,0.00253635]
[1758960366524,3.79841935,3997.8,3997.7,0.00253635]
[1758960368111,8.79841935,3997.8,3997.7,0.00253635]
[1758960368315,8.89207091,3997.8,3997.7,0.00253635]
[1758960369228,8.79841935,3997.8,3997.7,0.00253635]
[1758960369518,3.79841935,3997.8,3997.7,0.00253635]
[1758960370718,3.79841935,3997.8,3997.7,0.31153635]
[1758960372317,3.79841935,3997.8,3997.7,0.31053635]
[1758960373120,3.79841935,3997.8,3997.7,0.00253635]
[1758960373520,3.79841935,3997.8,3997.7,0.31053635]
[1758960374422,3.79841935,3997.8,3997.7,0.00253635]
[1758960375317,3.79841935,3997.8,3997.7,0.30953635]
[1758960376327,3.79841935,3997.8,3997.7,0.30853635]
[1758960377018,0.67662,3997.5,3997.1,0.75605]
[1758960377219,3.7762,3997.2,3997.1,0.306]
[1758960378020,3.7762,3997.2,3997.1,0.00218214]
[1758960378221,3.7762,3997.2,3997.1,0.30818214]
[1758960378921,3.7762,3997.2,3997.1,0.00218214]
[1758960379725,1.76306362,3999.6,3999.5,0.44978]
[1758960380032,0.2266,4000.0,3999.9,0.44974]
[1758960380228,0.2266,4000.0,3999.8,0.44974]
[1758960380726,0.22884616,4000.0,3999.8,0.45221665]
[1758960380919,0.22884616,4000.0,3999.9,0.307]
[1758960381619,0.79724616,4000.0,3999.9,0.75674]
[1758960383432,0.79724616,4000.0,3999.9,0.44974]
[1758960383630,0.79724616,4000.0,3999.9,0.75574]
[1758960384120,0.79724616,4000.0,3999.9,0.44974]
[1758960384321,5.79724616,4000.0,3999.9,0.75474]
[1758960385122,0.79724616,4000.0,3999.9,0.75474]
[1758960389125,0.17357452,4000.0,3999.9,8.96254]
[1758960389327,0.2266,4000.5,4000.4,0.44968]
[1758960389526,0.2266,4000.5,4000.4,0.75368]
[1758960389726,3.4344,4001.0,4000.9,0.44963]
[1758960389927,3.4344,4001.0,4000.9,0.75363]
[1758960390320,3.4344,4001.0,4000.9,0.44963]
[1758960390321,3.4361544,4001.0,4000.9,0.44963]
[1758960390524,0.2527544,4001.0,4000.9,0.75363]
[1758960391234,0.8494544,4001.0,4000.9,0.75363]
[1758960392137,0.8494544,4001.0,4000.9,0.44963]
[1758960392323,0.8494544,4001.0,4000.9,0.75263]
[1758960393535,0.8494544,4001.0,4000.9,0.75163]
[1758960393925,0.8494544,4001.0,4000.9,0.44963]
[1758960394122,0.8494544,4001.0,4000.9,0.75163]
[1758960395828,0.251,4000.5,4000.3,3.2078]
[1758960396027,0.5967,4000.4,4000.3,3.65749]
[1758960396230,0.5967,4000.4,4000.3,3.95849]
[1758960396633,0.5967,4000.4,4000.3,3.65749]
[1758960396829,0.5967,4000.4,4000.3,0.75069]
[1758960399638,0.5967,4000.4,4000.3,0.301]
[1758960400838,0.5967,3999.9,3999.8,0.45222665]
[1758960401038,0.5967,3999.9,3999.8,0.75222665]
[1758960401432,0.5967,3999.9,3999.8,0.45222665]
[1758960401639,0.5967,3999.9,3999.8,0.30147665]
[1758960402033,0.5967,3999.9,3999.8,0.00247665]
[1758960402740,0.5967,3999.9,3999.8,0.30147665]
[1758960403230,0.5967,3999.9,3999.8,0.00247665]
[1758960403432,0.5967,3999.9,3999.8,0.30147665]
[1758960407242,3.2078,4000.4,4000.2,0.4497]
[1758960407443,3.2078,4000.4,4000.3,0.297]
[1758960407942,3.8045,4000.4,4000.3,0.297]
[1758960408438,0.5967,4000.4,4000.3,0.297]
[1758960408842,0.5967,4000.4,4000.3,0.769]
[1758960409042,0.5967,4000.9,4000.3,0.769]
[1758960409437,0.5967,4000.9,4000.8,0.44963]
[1758960409642,0.5967,4000.9,4000.8,0.74663]
[1758960409831,0.5967,4000.9,4000.8,0.297]
[1758960410239,0.44963,4000.9,4000.8,0.297]
[1758960410444,0.5967,4000.9,4000.8,0.297]
[1758960411540,0.44969,4000.3,4000.1,0.89519795]
[1758960411744,0.44971,4000.2,3999.9,3.2078]
[1758960411945,0.5967,4000.1,4000.0,0.74572]
[1758960415848,0.5967,4000.1,4000.0,0.44972]
[1758960416051,0.5967,4000.1,4000.0,0.74372]
[1758960416840,0.5967,4000.1,4000.0,0.44972]
[1758960417146,0.5967,4000.1,4000.0,0.294]
[1758960417343,0.626,4000.1,4000.0,0.44972]
[1758960417554,0.626,4000.1,4000.0,0.294]
[1758960418151,0.251,4000.5,3999.8,0.8976746]
[1758960418152,0.626,3999.9,3999.8,0.8976746]
[1758960418347,0.626,3999.9,3999.8,0.29647665]
[1758960418544,5.626,3999.9,3999.8,0.29647665]
[1758960418741,5.626,3999.9,3999.5,4.10299795]
[1758960418742,5.0,3999.9,3999.5,3.2078]
[1758960418942,0.626,3998.7,3998.5,4.84588795]
[1758960419149,0.626,3998.9,3998.8,0.44986]
[1758960419342,0.626,3998.9,3998.8,0.74386]
[1758960419845,0.626,3998.9,3998.8,0.74662104]
[1758960420051,0.626,3998.9,3998.8,0.29676104]
[1758960421249,0.4638,3997.9,3996.6,0.5844]
[1758960421451,0.4638,3997.5,3997.0,0.45006]
[1758960421750,0.4638,3997.3,3996.7,0.74309]
[1758960421953,0.4638,3997.3,3996.5,0.68312]
[1758960422140,3.2078,3997.0,3996.5,0.23506413]
[1758960422338,0.91385,3997.1,3996.6,0.294]
[1758960422544,0.4638,3996.9,3996.7,0.8784]
[1758960422740,0.91388,3996.9,3996.7,0.5844]
[1758960422943,0.4638,3996.9,3996.7,0.5844]
[1758960423149,0.4638,3996.9,3996.7,0.8784]
[1758960423349,0.91388,3996.9,3996.7,0.8784]
[1758960423546,0.4638,3996.8,3996.7,0.8784]
[1758960423746,0.4638,3996.8,3996.5,0.81946413]
[1758960423942,0.4638,3996.8,3996.6,0.294]
[1758960424145,3.2078,3997.0,3996.9,0.5844]
[1758960424456,0.00235145,3997.3,3997.2,0.5844]
[1758960424648,0.00235145,3997.3,3997.2,0.8774]
[1758960425150,0.00235145,3997.3,3997.2,0.5844]
[1758960425457,0.00235145,3997.3,3997.2,0.8774]
[1758960425953,0.91386,3997.1,3996.6,0.5844]
[1758960426151,0.4638,3996.8,3996.6,0.5844]
[1758960426449,3.2078,3996.9,3996.5,0.45218413]
[1758960426647,0.91391,3996.6,3996.5,0.00206413]
[1758960427040,0.4638,3996.6,3996.5,0.00206413]
[1758960428643,5.4638,3996.6,3996.5,0.00206413]
[1758960428949,5.4638,3996.6,3995.6,3.2078]
[1758960428950,0.45021,3995.8,3995.6,3.2078]
[1758960429155,3.6741,3996.2,3995.6,3.65802]
[1758960429642,0.45021,3995.8,3995.6,3.8126]
[1758960429847,0.4663,3995.7,3995.6,3.2078]
[1758960430053,0.4663,3995.7,3995.6,3.20989882]
[1758960431444,0.4663,3995.7,3995.6,0.00209882]
[1758960432955,3.65801,3995.8,3995.7,0.6048]
[1758960433459,4.12431,3995.8,3995.6,0.00209882]
[1758960433644,4.12431,3995.8,3995.6,0.60689882]
[1758960433955,3.65801,3995.8,3995.7,0.6048]
[1758960434853,3.2078,3995.8,3995.7,0.6048]
[1758960435053,0.45017,3996.1,3996.0,0.8534]
[1758960435754,3.2078,3996.2,3996.1,0.6048]
[1758960437454,3.2078,3996.2,3996.1,0.8948]
[1758960438659,3.2078,3996.2,3996.1,0.6048]
[1758960438854,3.2078,3996.2,3996.1,0.8948]
[1758960439359,3.2078,3996.2,3996.1,0.6048]
[1758960441462,3.2078,3996.2,3996.1,1.4216]
[1758960441765,0.4178,3996.5,3996.4,1.4216]
[1758960441957,3.2078,3996.7,3996.6,0.8168]
[1758960442260,3.2078,3996.7,3996.6,1.4216]
[1758960442651,3.2078,3997.2,3997.1,0.45005]
[1758960442857,3.2078,3997.2,3997.1,0.5899]
[1758960446454,3.5998,3997.2,3997.1,1.008]
[1758960446658,4.0049,3997.2,3997.1,1.008]
[1758960447263,3.2078,3997.2,3997.1,1.4091]
[1758960447665,3.5998,3997.2,3997.1,1.6961]
[1758960448959,3.2078,3997.2,3997.1,1.6961]
[1758960450063,0.00235145,3997.3,3997.2,1.26924]
[1758960450359,0.00235145,3997.3,3997.2,2.14614]
[1758960450660,0.00235145,3997.3,3997.2,1.85914]
[1758960450853,0.00235145,3997.3,3997.2,2.14614]
[1758960453555,0.00235145,3997.3,3997.2,7.14614]
[1758960455663,4.0049,3998.5,3998.4,1.008]
[1758960455854,4.50771932,3998.5,3998.4,1.008]
[1758960456161,4.50771932,3998.5,3998.0,0.2465]
[1758960456162,1.24706,3997.9,3997.8,0.5899]
[1758960456362,1.70276,3997.9,3997.8,0.8749]
[1758960456664,1.70276,3997.9,3997.8,0.87689659]
[1758960456665,1.70473826,3997.9,3997.8,0.87689659]
[1758960457252,1.24903826,3997.9,3997.8,1.29499659]
[1758960458059,1.70473826,3997.9,3997.8,0.00199659]
[1758960458259,0.392,3997.1,3997.0,4.91237]
[1758960458562,0.392,3997.1,3997.0,5.59747]
[1758960458964,0.392,3997.1,3997.0,5.31347]
[1758960459161,0.392,3997.1,3997.0,5.59980257]
[1758960460065,0.392,3997.1,3997.0,2.39200257]
[1758960460759,0.392,3997.1,3997.0,2.10800257]
[1758960460964,0.392,3997.1,3997.0,2.39200257]
[1758960461360,0.392,3997.1,3997.0,1.65793257]
[1758960461361,0.7971,3997.1,3997.0,1.65793257]
[1758960461570,1.2528,3997.1,3997.0,1.54083257]
[1758960462063,1.2528,3997.1,3997.0,0.00233257]
[1758960463661,1.75578898,3997.1,3997.0,0.00233257]
[1758960463864,0.392,3997.1,3997.0,1.65793257]
[1758960464363,0.7971,3997.1,3997.0,1.65793257]
[1758960465066,0.7971,3997.1,3997.0,1.25683257]
[1758960465266,1.75617772,3997.1,3997.0,1.25683257]
[1758960465462,1.75617772,3997.1,3997.0,0.00233257]
[1758960466166,6.75617772,3997.1,3997.0,0.00233257]
[1758960466670,1.24723,3996.4,3996.3,1.008]
[1758960466870,1.24723,3996.4,3996.3,1.29]
[1758960467173,1.24723,3996.4,3996.3,1.008]
[1758960467569,1.70296,3996.2,3996.1,4.0797]
[1758960467767,1.70296,3996.2,3996.1,4.08248275]
[1758960468166,1.70296,3996.2,3996.1,4.50058275]
[1758960468366,1.70296,3996.2,3996.1,3.80048275]
[1758960468567,9.91076,3996.2,3996.1,0.00278275]
[1758960468765,10.41427143,3996.2,3996.1,1.01078275]
[1758960468967,4.95857143,3996.2,3996.1,1.01078275]
[1758960469375,4.0049,3996.2,3996.1,1.41188275]
[1758960471377,3.5998,3996.2,3996.1,1.41188275]
[1758960472867,4.0049,3996.2,3996.1,1.41188275]
[1758960473069,4.0049,3996.2,3996.1,1.01078275]
[1758960473266,4.4396,3996.2,3996.1,2.75e-06]
[1758960473470,4.4396,3996.2,3995.3,0.9548]
[1758960473471,0.7829,3995.4,3995.3,0.9548]
[1758960473874,3.2078,3995.6,3995.3,1.80675]
[1758960474079,3.6047,3995.6,3995.5,1.6057]
[1758960474375,3.65802,3995.6,3995.5,0.00218936]
[1758960474574,4.44092,3995.6,3995.5,0.00218936]
[1758960474973,3.9907,3995.6,3995.5,1.20618936]
[1758960475768,4.4254,3995.6,3995.5,0.57138936]
[1758960475974,4.4254,3995.6,3993.0,3.10918278]
[1758960475975,0.45051,3993.1,3993.0,3.10918278]
[1758960476168,0.45055,3992.7,3992.5,0.2492]
[1758960476373,3.2078,3992.7,3992.6,0.5692]
[1758960476679,3.6425,3992.7,3992.6,0.5692]
[1758960476877,3.64451412,3992.7,3992.6,0.57144357]
[1758960477266,3.49581412,3992.7,3992.6,0.57144357]
[1758960477471,3.32340723,3992.7,3992.6,0.57144357]
[1758960477674,3.60940723,3992.7,3992.6,0.57144357]
[1758960477868,3.32340676,3992.7,3992.6,0.57144357]
[1758960478069,3.75810676,3992.7,3992.6,0.57144357]
[1758960478273,3.75810676,3992.7,3990.5,0.8184]
[1758960478274,1.56111,3992.6,3990.5,0.8184]
[1758960478473,1.56111,3992.6,3990.6,0.5692]
[1758960478474,3.2078,3991.0,3990.6,0.5692]
[1758960478673,0.4347,3990.9,3990.5,0.2492]
[1758960478880,3.2078,3990.6,3990.5,0.8184]
[1758960479072,3.2078,3990.6,3990.0,0.2492]
[1758960479276,3.2078,3990.1,3990.0,0.00295744]
[1758960479477,3.2078,3990.1,3990.0,0.82135744]
[1758960480681,3.02985223,3990.1,3990.0,5.82135744]
[1758960480872,3.2078,3990.7,3990.6,0.5692]
[1758960481072,3.2078,3991.5,3991.0,0.45074]
[1758960481275,0.6105,3991.8,3991.0,3.2078]
[1758960481475,0.6105,3991.9,3991.5,0.45068]
[1758960481678,0.6105,3991.9,3991.7,0.45066]
[1758960481981,0.2277,3992.0,3991.8,0.74064]
[1758960482578,0.6105,3992.3,3992.2,0.45061]
[1758960482779,3.2078,3992.4,3992.2,0.45061]
[1758960483585,0.6105,3992.3,3992.1,0.45061]
[1758960483788,0.6105,3992.3,3992.2,0.29]
[1758960484184,0.6105,3992.3,3992.1,0.45061]
[1758960484474,0.6105,3992.3,3992.2,0.289]
[1758960488178,0.2277,3992.5,3992.3,0.45059]
[1758960488373,0.2277,3992.5,3992.4,0.289]
[1758960488775,0.9078,3992.5,3992.4,0.289]
[1758960489182,1.35837,3992.5,3992.4,0.289]
[1758960489878,0.9078,3992.5,3992.4,0.289]
[1758960490282,0.9078,3992.5,3992.4,0.288]
[1758960492184,0.9078,3992.5,3992.1,0.45061]
[1758960492388,1.35837,3992.5,3992.2,0.287]
[1758960493186,0.45059,3992.4,3992.1,0.45061]
[1758960493384,0.6801,3992.3,3992.2,0.287]
[1758960494181,0.80321758,3992.3,3992.2,0.287]
[1758960495387,1.22611758,3992.3,3992.2,0.287]
[1758960495591,0.80321758,3992.3,3992.2,0.287]
[1758960495787,0.6801,3992.3,3992.2,0.287]
[1758960496179,0.80336427,3992.3,3992.2,0.287]
[1758960496490,0.80336427,3992.3,3992.2,5.287]
[1758960496790,0.6801,3992.3,3992.2,5.287]
[1758960497187,0.80345405,3992.3,3992.2,5.287]
[1758960497384,0.6801,3992.3,3992.2,5.287]
[1758960497785,0.68211412,3992.7,3992.6,0.45056]
[1758960497986,0.00201412,3992.7,3992.6,3.94436]
[1758960498985,0.6801,3993.3,3993.2,0.45049]
[1758960499181,0.12351995,3993.3,3993.2,0.73549]
[1758960499593,0.12351995,3993.3,3993.2,39.80049]
[1758960499893,0.12654603,3993.3,3993.2,39.80287622]
[1758960500493,1.67714603,3993.3,3993.2,0.28738622]
[1758960500683,2.27330523,3993.3,3993.2,0.28738622]
[1758960501289,2.27378651,3993.3,3993.2,0.28738622]
[1758960502283,2.27378651,3993.3,3993.2,0.28838622]
[1758960502692,2.27378651,3993.3,3993.2,0.00238622]
[1758960502890,2.27378651,3993.3,3993.2,0.28838622]
[1758960504297,2.27378651,3993.3,3993.2,0.00238622]
[1758960504502,2.27378651,3993.3,3993.2,0.28838622]
[1758960504796,2.27378651,3993.3,3993.2,0.00238622]
[1758960505197,2.27378651,3993.3,3992.5,3.2078]
[1758960505198,0.8402,3992.6,3992.5,3.65837]
[1758960505392,2.17576043,3992.6,3992.5,3.65837]
[1758960505599,0.45061,3992.2,3992.1,0.85359]
[1758960505792,0.0837,3991.0,3989.9,0.6133]
[1758960506002,0.328,3989.9,3989.0,0.8655]
[1758960506206,3.2078,3989.3,3989.2,0.6133]
[1758960506504,3.92910969,3989.3,3989.2,0.6133]
[1758960506699,3.92910969,3989.3,3989.2,0.9073]
[1758960508411,3.33131995,3989.3,3989.2,5.9073]
[1758960508900,3.2078,3989.7,3989.6,0.6133]
[1758960509100,3.2078,3989.7,3989.6,1.3582]
[1758960509302,3.2078,3989.7,3989.6,0.9073]
[1758960509509,3.2078,3989.7,3989.6,5.9073]
[1758960510301,3.2078,3989.7,3989.6,0.6133]
[1758960510501,3.2078,3989.7,3989.6,0.9073]
[1758960510701,3.2078,3989.7,3989.6,0.6133]
[1758960510909,3.2078,3989.7,3989.6,0.9073]
[1758960511218,3.2078,3989.7,3989.6,0.6133]
[1758960511506,8.98669,3989.7,3989.6,0.294]
[1758960511714,0.45091,3989.5,3989.0,0.25517591]
[1758960511917,3.2078,3989.1,3989.0,0.86847591]
[1758960512208,3.2078,3989.1,3989.0,1.16247591]
[1758960512608,3.2078,3989.1,3989.0,0.86847591]
[1758960512912,3.2078,3989.1,3989.0,1.16247591]
[1758960513206,3.2078,3989.1,3989.0,0.86847591]
[1758960513412,3.2078,3989.1,3989.0,1.16247591]
[1758960514414,3.2078,3989.1,3989.0,1.16147591]
[1758960515308,3.2078,3989.1,3989.0,0.86847591]
[1758960515515,3.2078,3989.1,3989.0,1.16147591]
[1758960517003,3.2078,3989.1,3989.0,0.86847591]
[1758960517209,3.2078,3989.1,3989.0,1.16147591]
[1758960518620,3.2078,3989.5,3989.4,0.45092]
[1758960518909,3.2078,3989.5,3989.4,1.35622]
[1758960519319,0.45112,3987.7,3986.9,3.2078]
[1758960519517,3.2078,3987.1,3987.0,0.70339]
[1758960519720,3.2078,3987.7,3987.6,0.45111]
[1758960520018,0.45116,3987.3,3987.0,0.2522]
[1758960520219,3.21030332,3987.3,3987.0,0.0031648]
[1758960520415,0.45119,3987.1,3986.9,0.245]
[1758960520619,0.5935065,3987.0,3986.3,0.295]
[1758960520917,0.5935065,3987.0,3984.6,1.12866]
[1758960520918,0.45135,3985.6,3985.4,0.295]
[1758960521117,3.2078,3985.5,3984.1,3.2078]
[1758960521321,3.2078,3985.3,3985.2,0.4514]
[1758960521514,3.2078,3986.4,3986.3,0.6133]
[1758960521822,3.2078,3988.1,3987.3,0.6133]
[1758960522114,0.2444,3989.0,3987.0,0.2522]
[1758960522115,3.2078,3987.6,3987.0,0.2522]
[1758960522319,3.2078,3987.6,3987.3,0.6133]
[1758960522517,3.2078,3987.6,3987.5,1.06444]
[1758960522716,3.2078,3988.2,3987.5,0.8655]
[1758960523019,3.21067951,3988.2,3987.6,0.6133]
[1758960523513,3.82607951,3988.2,3987.9,0.45108]
[1758960523813,3.82607951,3988.2,3988.0,0.296]
[1758960524020,3.21067951,3988.2,3988.1,0.296]
[1758960524219,3.21067951,3988.2,3988.1,0.9093]
[1758960524618,0.00287951,3988.2,3988.1,5.9093]
[1758960524817,3.2078,3988.6,3988.2,0.6133]
[1758960525015,3.2078,3988.6,3988.4,0.45102]
[1758960525622,3.2078,3988.6,3988.5,0.6133]
[1758960525823,3.20957795,3988.6,3988.5,0.6133]
[1758960526224,3.20957795,3988.6,3988.5,45.2595]
[1758960527323,0.6154,3989.6,3988.6,0.6133]
[1758960527324,3.2078,3989.1,3988.6,0.6133]
[1758960527724,3.2078,3989.1,3989.0,1.06427]
[1758960527923,0.6154,3989.6,3989.0,1.06427]
[1758960527924,3.8232,3989.6,3989.5,0.45091]
[1758960528126,3.8232,3989.6,3989.5,0.74691]
[1758960528325,3.21066889,3989.6,3989.5,1.36021]
[1758960529628,3.21066889,3989.6,3989.5,1.61241]
[1758960529816,3.21066889,3989.6,3989.5,6.61241]
[1758960530017,3.2078,3990.1,3990.0,1.06415]
[1758960530220,3.2078,3990.1,3990.0,1.35915]
[1758960530421,3.2078,3990.1,3990.0,40.45615]
[1758960530622,2.4852563,3990.1,3990.0,40.70835]
[1758960530924,1.76634645,3992.7,3990.0,40.70835]
[1758960530925,0.6154,3991.4,3990.1,0.6133]
[1758960531131,0.61788899,3991.4,3990.8,0.6133]
[1758960531326,0.61788899,3991.4,3991.2,1.06401]
[1758960531527,0.00248899,3991.4,3991.3,0.9083]
[1758960532034,0.00248899,3991.4,3990.9,0.45075]
[1758960532224,0.45318899,3991.4,3991.0,39.39]
[1758960532422,0.00248899,3991.4,3991.0,39.39]
[1758960532624,0.6154,3991.3,3991.0,39.39]
[1758960532828,0.694,3991.3,3991.0,39.39]
[1758960533131,3.2078,3991.1,3990.8,0.00228949]
[1758960533434,0.694,3990.9,3990.8,0.00228949]
[1758960533727,0.694,3990.9,3990.8,0.29628949]
[1758960534234,0.694,3990.9,3990.8,0.74704949]
[1758960534738,3.2078,3991.1,3991.0,0.45074]
[1758960535225,3.2078,3991.1,3991.0,40.53554]
[1758960535428,0.00248899,3991.4,3991.3,1.15051]
[1758960535636,0.00248899,3991.4,3991.3,1.44451]
[1758960538426,0.00248899,3991.4,3991.3,40.52951]
[1758960541126,0.00248899,3991.4,3991.3,45.52951]
[1758960542223,3.9018,3992.3,3992.2,0.45061]
[1758960542530,3.9018,3992.3,3992.2,0.74261]
[1758960543328,3.90383815,3992.3,3992.2,0.74261]
[1758960543729,3.90383815,3992.3,3992.2,0.45061]